Cogmind - Beta 14 @@@ ROGUE MODE // 2024.09.14 @ 18:54:01 Player: Dull Result: Destroyed by P0-32K(R) with Subdweller Machine Gun Performance ------------- Evolutions (0) 0 Regions Visited (2) 400 Robots Destroyed (24) 120 Value Destroyed (527) 527 Prototype IDs (4) 80 Alien Tech Used (0) 0 Bonus (0) 0 TOTAL SCORE: 1127 Bonus ------- None Cogmind --------- Core Integrity 0/250 Matter 269/300 Energy 250/250 System Corruption 1% Temperature Cool (0) Movement Rolling (110) Location -10/Subcaves Parts ------- > --- POWER (1) -------- Ion Engine > --- PROPULSION (2) --- Subdweller Monowheel Subdweller Monowheel > --- UTILITY (2) ------ (None) > --- WEAPON (2) ------- Improved Light Cannon > --- INVENTORY (5) ---- Ion Engine Grenade Launcher Grenade Launcher Mining Laser Peak State ------------ > --- POWER ------------ Ion Engine > --- PROPULSION ------- Subdweller Monowheel Subdweller Monowheel > --- UTILITY ---------- High-capacity Storage Unit Subdweller Optics > --- WEAPON ----------- Subdweller Laser Improved Light Cannon > --- INVENTORY -------- Ion Engine Light Treads Light Treads Wheel Heat Sink Small Storage Unit Tractor Beam Beam Cannon Assault Rifle Assault Rifle Improved Light Cannon Improved Light Cannon Grenade Launcher Grenade Launcher Mining Laser Heavy Hammer Heavy Hammer Scrap Shield Fragment [Rating: 14] Favorites ----------- Power Ion Engine Engine Ion Engine Propulsion Light Treads Treads Light Treads Leg Aluminum Leg Wheel Subdweller Monowheel Utility High-capacity Storage Unit Device Subdweller Optics Storage High-capacity Storage Unit Protection Light Armor Plating Weapon Improved Light Cannon Energy Gun Subdweller Laser Ballistic Gun Light Assault Rifle Ballistic Cannon Improved Light Cannon Launcher Grenade Launcher Build | -11 -10 -10 ------- Run | Yrd Mat Sub Slots Evolved . | . . . Power . | . . . Propulsion . | . . . Utility . | . . . Weapon . | . . . Parts Attached 21 | . 13 8 Power . | . . . Engine . | . . . Core . | . . . Reactor . | . . . Propulsion 4 | . 2 2 Treads 2 | . 2 . Leg . | . . . Wheel 2 | . . 2 Hover . | . . . Flight . | . . . Utility 7 | . 5 2 Device 1 | . . 1 Storage 3 | . 3 . Processor . | . . . Hackware . | . . . Protection 3 | . 2 1 Artifact . | . . . Weapon 10 | . 6 4 Energy Gun 2 | . 1 1 Energy Cannon . | . . . Ballistic Gun 2 | . . 2 Ballistic Cannon 4 | . 3 1 Launcher 2 | . 2 . Special Weapon . | . . . Impact Weapon . | . . . Slashing Weapon . | . . . Piercing Weapon . | . . . Special Melee Weapon . | . . . Unidentified Prototypes . | . . . Parts Lost 4 | . . 4 Power . | . . . Propulsion . | . . . Utility 2 | . . 2 Weapon 2 | . . 2 Highest Loss Streak 3 | . . 3 To Critical Strikes . | . . . Average Slot Usage (%) 93 | . 94 90 Engine 14 | . 14 14 Treads 24 | . 27 14 Wheel 2 | . . 13 Storage 17 | . 19 7 Protection 4 | . 3 9 Energy Gun 3 | . 1 11 Ballistic Gun 2 | . 1 6 Ballistic Cannon 22 | . 25 10 Peak Build Rating 14 | 6 11 14 Average Rating 10 | 6 9 11 On Entrance 7 | 6 6 11 Naked Turns . | . . . Heaviest Build 58 | 13 58 56 Greatest Support 40 | 20 40 40 Greatest Overweight (x) 1 | . 1 1 Average Overweight (x) . | . . . Largest Inventory Capacity 20 | 8 20 20 Average Capacity 16 | 8 17 12 Most Carried 20 | 6 17 20 Average Carried 12 | 6 13 12 Final Capacity 20 | 8 20 5 Final Carried 17 | 6 17 4 Class Distribution -------------------- 91% | Mutant 8% | Subdweller-Mutant Dominant Class ---------------- Mutant | -10/Materials Mutant | -10/Subcaves Resources | -11 -10 -10 ----------- Run | Yrd Mat Sub Matter Collected 709 | 200 298 211 Remotely . | . . . Salvage Created 547 | . 349 198 Parts 37 | . 28 9 Haulers Intercepted 2 | . 2 . Recyclers Shooed . | . . . Parts Field Recycled . | . . . Retrieved Matter . | . . . Parts Self-Destructed 8 | . . 8 Prevented . | . . . Kills | -11 -10 -10 ------- Run | Yrd Mat Sub Combat Hostiles Destroyed 19 | . 13 6 Guns 7 | . 2 5 Cannons 12 | . 11 1 Classes Destroyed 7 | . 6 1 Builder 1 | . 1 . Hauler 2 | . 2 . Operator 1 | . 1 . Watcher 1 | . 1 . Swarmer 10 | . 10 . Grunt 5 | . 3 2 Subdweller 4 | . . 4 Best Kill Streak 6 | . 6 2 Combat Bots Only 4 | . 4 2 Max Kills in Single Turn 1 | . 1 1 Gunslinging . | . . . Exploded . | . . . Melee . | . . . Uniques/NPCs Destroyed . | . . . Combat | -11 -10 -10 -------- Run | Yrd Mat Sub Hostile Shots Fired 91 | . 54 37 Missed 25 | . 16 9 Damage Taken 1023 | . 366 657 Core 263 | . 97 166 Absorbed by Shields . | . . . Core Remaining (%) 100 | 100 . . Volleys Fired 78 | . 51 27 Largest 2 | . 2 2 Hottest 99 | . 78 99 Shots Fired 115 | . 62 53 Gun 51 | . 18 33 Cannon 62 | . 42 20 Launcher 2 | . 2 . Special . | . . . Kinetic 87 | . 51 36 Thermal 26 | . 9 17 Explosive 2 | . 2 . Electromagnetic . | . . . Robot Hit Streak 8 | . 7 8 Robot Miss Streak 4 | . 4 4 Penetration Max . | . . . Secondary Targets . | . . . Shots Hit Robots 64 | . 36 28 Core Hits 33 | . 22 11 Critical Kills . | . . . Critical Parts Destroyed . | . . . Critical Strikes 2 | . 2 . Burn 1 | . 1 . Blast 1 | . 1 . Melee Attacks . | . . . Impact . | . . . Slashing . | . . . Piercing . | . . . Sneak Attacks . | . . . Combat Hostiles . | . . . Follow-up Attacks . | . . . Damage Inflicted 1278 | . 673 605 Guns 497 | . 138 359 Cannons 764 | . 518 246 Explosions . | . . . Melee . | . . . Ramming 17 | . 17 . Kinetic 971 | . 557 414 Thermal 290 | . 99 191 Explosive . | . . . Electromagnetic . | . . . Impact . | . . . Slashing . | . . . Piercing . | . . . Highest Corruption 1 | . 1 1 Average Corruption 1 | . 1 1 Corruption Purged . | . . . Corruption Blocked . | . . . Effects 18 | . 16 2 Message Errors 2 | . 2 . Matter Fused 6 | . 6 . Heat Flow Errors 3 | . 2 1 Energy Discharges 3 | . 3 . Data Loss (minor) 3 | . 3 . Alerts 1 | . . 1 Overload Shots . | . . . Overflow Damage . | . . . Projectiles . | . . . Explosions . | . . . Melee . | . . . Knockbacks 10 | . 7 3 Impact . | . . . Kinetic 8 | . 5 3 Secondary 2 | . 2 . Self-Inflicted Damage . | . . . Shots . | . . . Rammed 5 | . 5 . Targets Rammed 5 | . 5 . Kicked . | . . . Crushed . | . . . Highest Temperature 162 | . 140 162 Average Temperature 45 | . 44 68 Received Heat Transfer 219 | . 42 177 Siege Activations . | . . . Robots Corrupted . | . . . Combat Hostiles . | . . . Parts Fried . | . . . Impact Corruptions . | . . . Robots Melted . | . . . Combat Hostiles . | . . . Parts Melted . | . . . Heat Transferred 595 | . 370 225 Parts Sabotaged . | . . . Parts Stolen . | . . . Parts Stripped . | . . . Power Chain Reactions . | . . . Alert | -11 -10 -10 ------- Run | Yrd Mat Sub Peak Influence 282 | . 282 . Initial . | . . . Average 54 | . 54 . Maximum Alert Level 1 | . 1 . Low Security (%) 96 | 100 96 . Level 1 3 | . 3 . Level 2 . | . . . Level 3 . | . . . Level 4 . | . . . Level 5 . | . . . High Security . | . . . Max Security . | . . . Squads Dispatched 1 | . 1 . Investigation . | . . . Extermination . | . . . Reinforcement 1 | . 1 . Assault . | . . . Garrison . | . . . Intercept . | . . . Searches Triggered . | . . . Construction Impeded . | . . . Haulers Reinforced . | . . . Active Scanning Responses . | . . . Cargo Convoy Interrupts . | . . . Stealth | -11 -10 -10 --------- Run | Yrd Mat Sub Distress Signals 1 | . 1 . Communications Jammed . | . . . Distress Signals . | . . . Times Spotted 36 | . 29 7 Peak Tracking Total 4 | . 4 2 Tactical Retreats 1 | . 1 . Traps | -11 -10 -10 ------- Run | Yrd Mat Sub Traps Triggered 3 | . 2 1 Indirectly . | . . . Trap Hack Attempts . | . . . Triggered . | . . . Disarmed . | . . . Reprogrammed . | . . . Reused . | . . . Traps Extracted . | . . . Installed . | . . . Triggered . | . . . Machines | -11 -10 -10 ---------- Run | Yrd Mat Sub Machines Disabled 3 | . 3 . Max in Single Turn 1 | . 1 . Machines Repaired . | . . . Machines Dismantled . | . . . Machines Sabotaged . | . . . Overloaded Fab Kills . | . . . Hacking | -11 -10 -10 --------- Run | Yrd Mat Sub Machines Accessed 8 | . 8 . Terminals 6 | . 6 . Fabricators . | . . . Repair Stations . | . . . Recycling Units 2 | . 2 . Scanalyzers . | . . . Garrison Access . | . . . Total Hacks 20 | . 20 . Successful 7 | . 7 . Failed 12 | . 12 . Catastrophic . | . . . Database Lockouts 1 | . 1 . Manual 10 | . 10 . Terminals 15 | . 15 . Fabricators . | . . . Repair Stations . | . . . Recycling Units 5 | . 5 . Scanalyzers . | . . . Garrison Access . | . . . Terminal Hacks 5 | . 5 . Robot Analysis 2 | . 2 . Prototype ID Bank 2 | . 2 . Locate Traps 1 | . 1 . Fabricator Hacks . | . . . Repair Station Hacks . | . . . Recycling Unit Hacks . | . . . Scanalyzer . | . . . Garrison Access Hacks . | . . . Unauthorized Hacks 2 | . 2 . Terminals . | . . . Fabricators . | . . . Repair Stations . | . . . Recycling Units 2 | . 2 . Mask 2 | . 2 . Scanalyzers . | . . . Garrison Access . | . . . Data Cores Recovered . | . . . Used . | . . . Hacking Detections 7 | . 7 . Full Trace Events 1 | . 1 . Feedback Events . | . . . Feedback Blocked . | . . . Robot Schematics Acquired . | . . . Robots Built . | . . . Authchips . | . . . Time . | . . . Total Robot Build Rating . | . . . Part Schematics Acquired . | . . . Parts Built . | . . . Authchips . | . . . Time . | . . . Total Part Build Rating . | . . . Parts Repaired . | . . . Time . | . . . Parts Recycled . | . . . Recycled Matter . | . . . Retrieved Matter . | . . . Retrieved Components . | . . . Parts Scanalyzed . | . . . Part Schematics Acquired . | . . . Parts Damaged . | . . . Bothacking | -11 -10 -10 ------------ Run | Yrd Mat Sub Used RIF Installer . | . . . Robots Hacked . | . . . Non-combat . | . . . Combat . | . . . Robot Hacks Applied . | . . . Relay Couplers Released . | . . . Fabnet Peak Effective % . | . . . Robots Rewired . | . . . Allies Hacked . | . . . Hacks Repelled . | . . . Allies | -11 -10 -10 -------- Run | Yrd Mat Sub Total Allies . | . . . Largest Group . | . . . Highest-Rated Group . | . . . Highest-Rated Ally . | . . . Total Orders . | . . . Ally Attacks . | . . . Total Damage . | . . . Kills . | . . . Allies Corrupted . | . . . Allies Melted . | . . . Intel | -11 -10 -10 ------- Run | Yrd Mat Sub Robot Analysis Total 2 | . 2 . Derelict Logs Recovered . | . . . Drone Launches . | . . . Drone Recoveries . | . . . Exploration | -11 -10 -10 ------------- Run | Yrd Mat Sub Turns Passed 2850 | 5 2295 550 Spaces Moved 1230 | 5 950 275 Core . | . . . Treads 996 | . 903 93 Legs 52 | 5 47 . Wheels 182 | . . 182 Hover . | . . . Flight . | . . . Fastest Speed 110 | 120 120 110 Average Speed 206 | 120 221 153 Slowest Speed 240 | 120 240 240 Overloaded Moves . | . . . Propulsion Burnouts . | . . . Robots Hopped . | . . . Cave-ins Triggered . | . . . Exploration Rate (%) 40 | 2 99 19 Regions Visited 2 Branch Regions 1 Pre-discovered Areas . | . . . Known Exits Taken . | . . . Unknown Exits Taken 2 | 1 1 . Scrap Searched 4 | . . 4 Spaces Dug 23 | . 23 . Terrain Destroyed 25 | . 24 1 Melee . | . . . Projectile 2 | . 1 1 AOE 23 | . 23 . Terrain Rammed . | . . . Walls Destroyed . | . . . Machines Disabled . | . . . Actions | -11 -10 -10 --------- Run | Yrd Mat Sub Total 1429 | 4 1073 352 Wait 49 | . 29 20 Move 1228 | 4 949 275 Hop . | . . . Pick Up 19 | . 16 3 Fast Attach 7 | . 5 2 Attach 2 | . 1 1 Detach . | . . . Swap 12 | . 7 5 Drop 28 | . 10 18 Fire 78 | . 51 27 Melee . | . . . Ram . | . . . Kick . | . . . Crush 5 | . 5 . Escape Stasis . | . . . Rewire . | . . . Trap . | . . . Miscellaneous 1 | . . 1 Route ------- -11/Scrapyard -10/Materials (discovered 5 exits: [*Mat x3] / [*Min] / [*Sub]) -10/Subcaves History --------- Turn | Location | Event 1 | -11/Scrapyard | Discovered new exit (range 3) 6 | -11/Scrapyard | Entered Materials 17 | -10/Materials | Discovered new exit (range 16) 124 | -10/Materials | Central database locked down 309 | -10/Materials | Build established: Mutant 762 | -10/Materials | Discovered new exit (range 5) 983 | -10/Materials | Discovered new exit (range 8) 1415 | -10/Materials | Discovered new exit (range 5) 2251 | -10/Materials | Discovered new exit (range 12) 2301 | -10/Materials | Entered Subcaves 2302 | -10/Subcaves | Shifting Twisted Machinery released Sub. Monowheel 2459 | -10/Subcaves | Core integrity fell below 50% 2651 | -10/Subcaves | Shifting Twisted Machinery released Sub. Machine Gun 2810 | -10/Subcaves | Ambushed by Subdwellers from Twisted Machinery 2838 | -10/Subcaves | Core integrity fell below 20% 2851 | -10/Subcaves | Destroyed by P0-32K(R) with Subdweller Machine Gun Last Messages --------------- 02636_ System corrupted: Heat flow error (+202). Sub. Machine Gun falls loose from the Twisted Machinery. 02656_ Triggered Piercing Trap. 02656_ Spikes shoot up from the floor. 02656_ Critical hit (Impale). 02667_ Dropped Battle Rifle. 02708_ G-34 Mercenary destroyed. 02713_ Aluminum Leg fries itself beyond repair. 02724_ Heat Sink fries itself beyond repair. 02727_ G-47 Trooper destroyed. 02739_ Acquired 26 matter. 02810_ ZQ-7VJ(R) emerges from the Twisted Machinery. 02814_ Scrap Shield destroyed. 02814_ KR-AUE(R) destroyed. P0-32K(R) emerges from concealment. 02830_ Sub. Laser destroyed. 02839_ ZQ-7VJ(R) knocked back. 02845_ ZQ-7VJ(R) destroyed. 02848_ P0-32K(R) knocked back. 02849_ Sub. Machine Gun destroyed. Map ----- +----------------------------------------------------+ | | | | | | | | | ?????????????????????????????????????????????????? | | ?????????????????????????????????????????????????? | | ?????????????????????????????????????????????????? | | ?????????????????????????????????????????????????? | | ?????????????????????????????????????????????????? | | ?????????????????????????????????????????????????? | | ?????????????????????????????????????????????????? | | ?????????????????????????????????????????????????? | | ?????????????????????????????????????????????????? | | ?????????????????????????????????????????????????? | | ?????????????????????????????????????????????????? | | ?????????????????????????????????????????????????? | | ?????????????????????????????????????????????????? | | ?????????????????##??????????????????????????????? | | ?????????????????# #?????????????????????????????? | | ??????????????????#;##########??""???????????????? | | ??????????###????## #"##"""???????????????? | | ?????????## ###### !""""""??????????????? | | ????????## & *%"" """??????????????? | | ??####??# R%% ## # "" ?????????????? | | ??# #### * ###??? ???????????????? | | ??## ##% @#?????? ""????????????? | | ??## ## ###% ##???????? "???????????? | | ??# ## ##?# #??????????""??????????? | | ###" #### ####?# ##??????????????????????? | | #"" ##??# #???# ???????????????????????? | | ######## #???# ??????????????????????? | | #???# %% ##???# ## #??????????????????????? | | #" #???# ##????##??##??????????????????????? | | ## ##??## ##?????????????????????????????????? | | # ##??# #??????????????????????????????????? | | ## ##?# #??????????????????????????????????? | | ## ### #??????????????????????????????????? | | "### #??????????????????????????????????? | | ### ##??????????????????????????????????? | | ??### #???????????????????????????????????? | | ????### #???????????????????????????????????? | | ??????### #???????????????????????????????????? | | ???????## #???????????????????????????????????? | | ??????## #???????????????????????????????????? | | ??????# #???????????????????????????????????? | | ??????# #####???????????????????????????????????? | | ?????## ##??????????????????????????????????????? | | ?????# #??????????????????????????????????????? | | ?????## ##?????????????????????????????????????? | | ??????## ##????????????????????????????????????? | +----------------------------------------------------+ Best States ------------- Heat Dissipation 25 Energy Generation 10 Energy Capacity 250 Matter Stores 300 Matter Capacity 300 Sight Range 21 Terrain Scan Density 10 Armor Coverage 800 Evasion (%) 55 Recoil Reduction 2 Item Schematics ----------------- None Robot Schematics ------------------ None Fabricated ------------ Nothing Alien Tech Used ----------------- None Achievements -------------- None Challenges ------------ None Game ------ Seed PitchforkRestorationBasin Manual? 0 Play Time 00:14:25 Cumulative 78.1 hours Start 2024.09.14 @ 18:39:54 End 2024.09.14 @ 18:54:01 Sessions 1 Manual Loads 0 Difficulty Rogue Special Mode None Game No. 103 Rogue 103 Adventurer 0 Explorer 0 Win Type - Total 1 Types 1/0/0/0/0/0/0/0/0 Lore% 17 Gallery% 55 Achievement% 43 Wizard Run 0 Options --------- Layout 0 ASCII 0 Keyboard 0 Movement Mouse Keybinds 1 Fullscreen 1 Font 18/TerminusBold Map View 76x50 Zoom Use 0% Tactical HUD 1 Map Filters NONE Filters NONE Steam 1 RUN: d4272cfb-6d74-4d65-92b3-236f643a6ccc